Workbook

Sheet Лист1
A1: Рацион: Основное организованное меню с 7-11 лет | E1: День: | F1: 4 | I1: Сезон: | K1: 01.01-12.31 (Все)
D2: Неделя: | F2: 2 | I2: Возраст: | K2: Основное организованное меню с 7-11 лет
A3: № рец. | B3: Прием пищи, наименование блюда | D3: Масса порции | E3: Пищевые вещества (г) | H3: Энерге- тическая ценность (ккал) | I3: Витамины (мг) | M3: Минеральные вещества (мг)
E4: Б | F4: Ж | G4: У | I4: B1 | J4: C | K4: A, мкг | L4: E | M4: Ca | N4: P | O4: Mg | P4: Fe
A5: 1 | B5: 2 | D5: 3 | E5: 4 | F5: 5 | G5: 6 | H5: 7 | I5: 8 | J5: 9 | K5: 10 | L5: 11 | M5: 12 | N5: 13 | O5: 14 | P5: 15
A6: завтрак
A7: 213 | B7: Макароны,запеченные с сыром | D7: 185 | E7: 9.46 | F7: 13.66 | G7: 36.39 | H7: 312.35 | K7: 56.25 | L7: 0.13 | M7: 5.58 | N7: 4.28 | O7: 0.22 | P7: 0.05
A8: 14 | B8: Салат из свежих огурцов | D8: 60 | E8: 0.45 | F8: 2.70 | G8: 1.80 | H8: 33.00 | I8: 0.02 | J8: 2.30 | L8: 1.38 | M8: 12.29 | N8: 22.35 | O8: 7.01 | P8: 0.31
A9: 414 | B9: Кофейный напиток с молоком | D9: 200 | E9: 2.92 | F9: 3.22 | G9: 14.75 | H9: 100.48 | I9: 0.04 | J9: 0.30 | K9: 20.00 | M9: 120.41 | N9: 90.00 | O9: 14.02 | P9: 0.13
A10: 114 | B10: Хлеб пшеничный | D10: 30 | E10: 1.14 | F10: 0.12 | G10: 7.38 | H10: 70.50 | I10: 0.01 | M10: 3.00 | P10: 0.16
A11: 536 | B11: катык,кисломолочный продукт | D11: 100 | E11: 2.80 | F11: 3.20 | G11: 4.50 | H11: 56.40 | I11: 0.04 | J11: 0.60 | K11: 22.00 | L11: 0.07 | M11: 122.00 | N11: 96.00 | O11: 15.00 | P11: 0.10
A12: итого за завтрак | D12: 575 | E12: 23.07 | F12: 29.58 | G12: 70.48 | H12: =SUM(H7:H11) -> 572.73 | I12: 0.15 | J12: 1.11 | K12: =SUM(K7:K11) -> 98.25 | L12: =SUM(L7:L10) -> 1.51 | M12: 306.98 | N12: =SUM(N7:N11) -> 212.63 | O12: 42.30 | P12: 2.04
A13: обед
A14: 19 | B14: Салат из свежей капусты с помидором и огурцами | D14: 60 | E14: 1.20 | F14: 3.38 | G14: 2.85 | H14: 46.50 | I14: 0.03 | J14: 3.15 | K14: 780.60 | L14: 1.17 | M14: 13.05 | N14: 22.93 | O14: 15.93 | P14: 0.55
A15: 63 | B15: Суп картофельный с бобовыми | D15: 200 | E15: 8.03 | F15: 4.51 | G15: 33.54 | H15: 208.92 | I15: 0.23 | J15: 10.72 | K15: 240.95 | L15: 1.82 | M15: 27.06 | N15: 80.25 | O15: 32.60 | P15: 1.86
A16: 118 | B16: Рагу овощное с мясом | D16: 200 | E16: 16.46 | F16: 18.01 | G16: 16.13 | H16: 290.21 | I16: 0.09 | J16: 12.92 | K16: 671.42 | L16: 3.06 | M16: 19.04 | N16: 56.02 | O16: 25.81 | P16: 0.80
A17: 538 | B17: Напиток из шиповника | D17: 200 | E17: 0.70 | F17: 0.30 | G17: 22.80 | H17: 97.00 | I17: 0.01 | J17: 70.00 | K17: 164.40 | L17: 0.76 | M17: 12.00 | N17: 3.40 | O17: 3.40 | P17: 1.50
A18: 114 | B18: Хлеб пшеничный | D18: 30 | E18: 1.52 | F18: 0.16 | G18: 9.84 | H18: 70.50 | I18: 0.02 | M18: 4.00 | P18: 0.22
A19: 116 | B19: Хлеб столовый (ржано-пшеничный) | D19: 30 | E19: 1.98 | F19: 0.36 | G19: 10.20 | H19: 54.30 | I19: 0.05 | M19: 10.50 | P19: 1.17
A20: итого за обед | D20: 804 | E20: 31.84 | F20: 27.73 | G20: 131.02 | H20: =SUM(H14:H19) -> 767.43 | I20: 0.46 | J20: =J14+J15+J16+J17+J18+J19 -> 96.79 | K20: =K14+K15+K16+K17+K18+K19 -> 1857.37 | L20: =L14+L15+L16+L17+L18+L19 -> 6.81 | M20: 90.49 | N20: =N14+N15+N16+N17+N18+N19 -> 162.60 | O20: =O14+O15+O16+O17+O18+O19 -> 77.74 | P20: 6.45
A26: итого за день | D26: =D12+D20+D25 -> 1379 | E26: 54.91 | F26: 57.31 | G26: 201.50 | H26: =H12+H20 -> 1340.16 | I26: 0.61 | J26: 97.90 | K26: 1955.62 | L26: 8.32 | M26: 397.47 | N26: 375.23 | O26: 120.04 | P26: 8.49

Sheet Лист2

Sheet Лист3
